bitfinex/quotes_ETHUSD_20250130
["timestamp","ask_amount","ask_price","bid_price","bid_amount"]
[1738244097047,3.06842,3259.1,3258.4,0.44211731]
[1738244097247,3.06842,3259.1,3258.4,3.51102731]
[1738244097489,3.06842,3259.1,3258.5,3.06888]
[1738244097995,3.0,3258.9,3257.1,0.7987]
[1738244098145,3.06852,3258.9,3258.3,0.7987]
[1738244098348,3.06864,3258.8,3258.3,0.7987]
[1738244098545,3.06852,3258.9,3258.3,0.7987]
[1738244098788,3.06862,3258.8,3258.3,0.7987]
[1738244098976,3.06871,3258.7,3258.3,0.7987]
[1738244099179,3.06871,3258.7,3257.9,0.7749]
[1738244100100,3.06854,3258.9,3258.0,3.06934]
[1738244100304,3.06876,3258.7,3258.0,3.06934]
[1738244100492,0.2895,3259.3,3258.0,0.691378]
[1738244100810,3.06807,3259.4,3258.2,3.06917]
[1738244101102,0.60826,3259.7,3258.8,3.06854]
[1738244101272,0.60826,3259.7,3259.0,3.0684]
[1738244101488,0.282,3260.0,3259.0,3.0684]
[1738244101712,3.06758,3259.9,3259.0,3.0684]
[1738244101857,3.06758,3259.9,3258.8,3.0686]
[1738244102058,0.7881,3260.1,3258.7,0.8168]
[1738244102258,3.0748,3260.2,3258.7,0.8168]
[1738244102259,3.0746,3260.4,3258.7,0.8168]
[1738244102459,3.0673,3260.2,3259.0,3.06833]
[1738244102696,3.0673,3260.2,3258.7,0.8168]
[1738244102697,3.0,3260.1,3258.8,0.03068242]
[1738244102900,2.43,3260.8,3259.5,3.06791]
[1738244103213,2.43,3260.8,3260.4,3.06709]
[1738244103507,5.49673,3260.8,3259.9,3.09819173]
[1738244103687,5.49673,3260.8,3260.1,3.06732]
[1738244103688,2.43,3260.8,3260.1,3.06732]
[1738244103886,2.43,3260.8,3260.3,3.06719]
[1738244104058,2.43,3260.8,3260.4,3.06707]
[1738244104262,3.67621127,3261.6,3260.8,3.06665]
[1738244104516,3.066,3261.6,3260.8,3.06665]
[1738244104717,3.06508,3262.6,3260.5,0.7982]
[1738244104718,3.06554,3262.1,3261.4,3.06608]
[1738244105017,3.0,3262.1,3261.4,0.8203]
[1738244105216,3.36561,3262.0,3261.4,3.88645]
[1738244105426,3.36561,3262.0,3261.4,0.8203]
[1738244105579,3.36561,3262.0,3261.3,3.06619]
[1738244105772,0.3,3262.0,3261.4,3.0661]
[1738244105993,0.3,3262.0,3261.3,3.06619]
[1738244106208,3.06569,3261.9,3261.3,3.06619]
[1738244106998,3.06569,3261.9,3261.1,3.06644]
[1738244107198,3.0,3261.8,3261.2,3.06635]
[1738244107922,3.0,3261.8,3261.3,3.06617]
[1738244108231,3.06535,3262.3,3261.6,3.06595]
[1738244108377,3.06548,3262.2,3261.2,3.06632]
[1738244108578,3.06591,3261.7,3261.0,3.88677]
[1738244108779,3.06591,3261.7,3261.1,3.06638]
[1738244109107,3.06591,3261.7,3261.0,3.88677]
[1738244109307,3.06591,3261.7,3261.1,3.06644]
[1738244109521,3.06613,3261.5,3260.8,3.06671]
[1738244109720,3.06613,3261.5,3260.6,3.8639]
[1738244109721,3.06625,3261.4,3260.6,3.86385]
[1738244109895,3.06625,3261.4,3260.7,3.0668]
[1738244110485,3.06633,3261.3,3260.6,0.797]
[1738244110680,3.06633,3261.3,3260.7,3.06682]
[1738244111126,3.06615,3261.5,3260.7,3.06682]
[1738244111127,3.06609,3261.5,3260.7,3.06682]
[1738244111283,3.06609,3261.5,3260.8,3.3446034]
[1738244111620,3.0,3261.6,3260.8,4.06540574]
[1738244112126,3.06568,3262.0,3261.1,3.06642]
[1738244112279,3.06585,3261.8,3261.1,3.06642]
[1738244112724,3.06585,3261.8,3261.2,3.06632]
[1738244112929,3.06585,3261.8,3261.2,3.3442134]
[1738244113420,3.0,3262.1,3261.4,3.06611]
[1738244113591,3.06564,3262.0,3261.4,3.0661]
[1738244113775,3.0,3261.9,3261.4,3.0661]
[1738244114520,3.0,3262.0,3261.4,3.0661]
[1738244114706,6.0656,3262.0,3261.4,3.0661]
[1738244114892,3.0,3262.1,3261.5,3.06607]
[1738244115092,3.67187088,3262.6,3261.3,0.7794]
[1738244115093,3.60680088,3262.6,3261.3,0.7794]
[1738244115320,3.06559,3262.1,3261.3,3.8456]
[1738244115506,3.06575,3261.9,3261.3,0.7794]
[1738244115831,3.06635,3261.2,3261.0,0.44457831]
[1738244115976,3.06635,3261.2,3260.6,3.85233]
[1738244116176,3.06635,3261.2,3260.6,0.7855]
[1738244116381,3.06635,3261.2,3260.4,3.53218774]
[1738244116382,3.06674,3260.8,3260.4,0.46510774]
[1738244116620,0.306635,3261.2,3260.4,0.46510774]
[1738244116621,3.06701,3260.5,3260.4,0.46510774]
[1738244117597,3.06733,3260.2,3259.9,0.27814176]
[1738244117994,6.13429,3260.4,3259.9,0.27814176]
[1738244118207,3.06723,3260.3,3259.9,0.27814176]
[1738244118414,3.06721,3260.3,3259.9,0.27814176]
[1738244118636,3.06708,3260.5,3259.9,3.34569176]
[1738244118791,3.06712,3260.4,3259.9,0.27814176]
[1738244118997,3.06712,3260.4,3259.8,3.06758]
[1738244119299,3.06712,3260.4,3259.6,3.06783]
[1738244119300,3.06634,3261.3,3260.4,3.06708]
[1738244119605,3.83464,3261.7,3260.4,3.06708]
[1738244119606,3.06652,3261.1,3260.4,3.06708]
[1738244120040,3.06642,3261.2,3260.6,3.06691]
[1738244120235,3.06569,3261.9,3261.0,3.06654]
[1738244120406,3.06616,3261.5,3260.8,3.06673]
[1738244120605,0.274,3262.0,3260.8,3.06673]
[1738244120606,3.06606,3261.6,3260.9,3.0666]
[1738244120794,3.06606,3261.6,3260.8,3.06673]
[1738244121001,3.0,3261.5,3260.7,0.7763]
[1738244121203,3.06627,3261.3,3260.7,3.84311]
[1738244121805,3.06618,3261.4,3260.8,3.06665]
[1738244122403,3.0,3261.6,3260.7,0.7763]
[1738244122645,3.06622,3261.4,3260.7,3.84306]
[1738244122850,3.06641,3261.2,3260.7,0.7763]
[1738244123021,0.3,3261.6,3260.4,3.06709]
[1738244123022,3.06656,3261.0,3260.4,3.06709]
[1738244123222,3.06621,3261.4,3260.8,3.06666]
[1738244123639,3.36605,3261.6,3260.9,3.06658]
[1738244123640,3.0,3261.5,3260.9,3.06658]
[1738244123839,3.67025266,3262.1,3260.5,0.03066716]
[1738244123840,0.60473266,3262.1,3260.5,0.03066716]
[1738244124151,0.015,3262.0,3260.3,0.8106]
[1738244124336,3.06664,3260.9,3260.3,3.87776]
[1738244124519,3.06645,3261.1,3260.3,3.87776]
[1738244124717,3.06627,3261.3,3260.6,3.34505991]
[1738244125045,3.06611,3261.5,3260.7,3.06673]
[1738244125347,3.06611,3261.5,3260.9,3.06662]
[1738244125720,3.06617,3261.4,3260.9,3.06662]
[1738244125921,3.06611,3261.5,3260.9,3.06662]
[1738244126336,3.0,3261.6,3261.1,0.7532]
[1738244126856,3.0,3261.6,3261.1,3.81963]
[1738244127035,4.48217266,3262.1,3261.2,3.06635]
[1738244127207,3.0659,3261.7,3261.1,0.7532]
[1738244127608,0.60473266,3262.1,3261.2,0.03066319]
[1738244127860,3.0652,3262.5,3261.8,3.06572]
[1738244128012,3.06525,3262.4,3261.8,3.06572]
[1738244128562,0.0075,3262.7,3261.4,3.06615]
[1738244128768,0.0075,3262.7,3261.1,3.81964]
[1738244128769,3.06579,3261.8,3261.1,3.81964]
[1738244129055,3.06603,3261.6,3261.1,0.7532]
[1738244129655,3.06563,3262.0,3261.4,3.06607]
[1738244129837,3.06576,3261.9,3261.2,3.06628]
[1738244130159,0.7792,3262.4,3261.2,3.06628]
[1738244130160,3.06558,3262.1,3261.5,3.06607]
[1738244130457,3.06561,3262.0,3261.3,0.27898109]
[1738244130761,3.06561,3262.0,3261.3,3.34518109]
[1738244130911,3.06561,3262.0,3261.4,3.06611]
[1738244131254,3.06542,3262.2,3261.6,3.06593]
[1738244131439,3.06526,3262.4,3261.6,3.06593]
[1738244131751,3.06526,3262.4,3261.8,3.06576]
[1738244132251,3.06526,3262.4,3261.9,0.06514377]
[1738244132611,3.06541,3262.2,3261.9,0.06514377]
[1738244132952,3.06541,3262.2,3262.0,0.06924602]
[1738244133252,3.06576,3261.9,3261.7,0.27898109]
[1738244133457,3.06576,3261.9,3261.8,0.27898109]
[1738244133758,3.0655,3262.1,3261.8,0.27898109]
[1738244133930,3.06534,3262.3,3261.8,0.27898109]
[1738244134246,3.06514,3262.5,3261.8,0.27898109]
[1738244134456,3.06539,3262.3,3261.8,0.27898109]
[1738244135070,3.06485,3262.8,3262.2,3.06535]
[1738244135357,3.06456,3263.2,3262.5,3.06512]
[1738244135565,3.06456,3263.2,3261.9,3.85595]
[1738244135566,3.06936,3263.4,3262.6,3.06503]
[1738244135713,3.06936,3263.4,3262.8,3.06485]
[1738244135913,3.06936,3263.4,3262.9,0.796]
[1738244135914,6.06443,3263.3,3262.9,0.796]
[1738244136117,3.06449,3263.2,3262.9,0.796]
[1738244136345,0.005,3263.4,3262.9,0.796]
[1738244136517,3.06461,3263.1,3262.9,0.796]
[1738244136912,3.06445,3263.3,3262.9,0.796]
[1738244137222,3.0,3263.2,3262.9,0.796]
[1738244137417,0.005,3263.4,3262.9,1.182094]
[1738244137658,0.005,3263.4,3263.1,3.0645]
[1738244138116,0.005,3263.4,3263.0,3.06465]
[1738244138970,0.005,3263.4,3263.1,3.06456]
[1738244139175,0.005,3263.4,3263.2,3.06447]
[1738244139465,0.005,3263.4,3263.1,3.06456]
[1738244139824,0.005,3263.4,3262.9,3.86073]
[1738244140018,0.005,3263.4,3262.9,0.796]
[1738244140556,0.005,3263.4,3262.6,0.44512473]
[1738244140759,3.06494,3262.7,3262.6,0.44512473]
[1738244141006,3.06494,3262.7,3262.4,0.7666]
[1738244141007,3.0651,3262.6,3262.4,0.7666]
[1738244141308,3.0651,3262.6,3261.8,3.70683411]
[1738244141309,3.06533,3262.3,3261.9,0.7905]
[1738244141607,3.0653,3262.4,3261.9,0.7905]
[1738244141763,3.06585,3261.8,3261.6,0.44512473]
[1738244141964,3.06588,3261.7,3261.6,0.44512473]
[1738244142174,0.8146,3262.3,3261.6,0.44512473]
[1738244142381,3.06541,3262.2,3261.6,0.44512473]
[1738244142605,3.06588,3261.7,3261.6,0.44512473]
[1738244143678,6.679046,3261.7,3261.6,0.44512473]
[1738244143991,7.472546,3261.7,3261.6,0.44512473]
[1738244144320,7.472546,3261.7,3261.6,4.73e-06]
[1738244144321,7.487546,3261.7,3261.6,4.73e-06]
[1738244145250,8.09425923,3261.7,3261.6,4.73e-06]
[1738244145746,3.06684,3260.7,3260.1,3.06732]
[1738244145929,3.06622,3261.4,3260.8,3.8888]
[1738244146126,3.06637,3261.2,3260.8,0.8221]
[1738244146539,3.06646,3261.1,3260.8,0.8221]
[1738244146737,3.06646,3261.1,3260.2,3.06721]
[1738244146738,3.06654,3261.0,3260.3,0.8183]
[1738244146942,3.06679,3260.8,3260.3,0.8183]
[1738244147146,3.06695,3260.6,3260.3,0.8183]
[1738244147748,3.06695,3260.6,3260.4,0.0691193]
[1738244148516,3.06701,3260.5,3260.4,0.0691193]
[1738244148752,3.06695,3260.6,3259.9,3.83843]
[1738244149051,3.06695,3260.6,3260.0,0.06926264]
[1738244149553,0.7647,3260.9,3260.0,0.06926264]
[1738244149848,3.06712,3260.4,3260.0,0.06926264]
[1738244150064,3.06692,3260.6,3260.0,0.06926264]
[1738244150263,3.06692,3260.6,3259.9,0.7709]
[1738244150550,3.0671,3260.5,3260.0,0.0699781]
[1738244150748,3.0671,3260.5,3259.9,0.7709]
[1738244150922,3.06692,3260.6,3260.0,0.0699781]
[1738244151306,0.68312,3260.9,3260.0,0.10065199]
[1738244151618,3.0669,3260.7,3260.0,0.0699781]
[1738244151822,3.06698,3260.6,3260.0,0.0699781]
[1738244152664,3.06719,3260.4,3260.0,0.0699781]
[1738244152845,3.06698,3260.6,3260.0,0.0699781]
[1738244153027,3.06698,3260.6,3259.9,0.7709]
[1738244153355,3.06698,3260.6,3260.0,0.07064997]
[1738244153862,3.06674,3260.8,3260.1,3.06738]
[1738244154012,3.06674,3260.8,3260.2,3.06723]
[1738244154219,3.06674,3260.8,3260.2,3.1378083]
[1738244154446,3.06658,3261.0,3260.4,3.06709]
[1738244154821,3.06658,3261.0,3260.5,0.0704583]
[1738244155321,3.06679,3260.8,3260.2,3.06723]
[1738244155544,3.06679,3260.8,3260.3,0.07045492]
[1738244155743,3.06679,3260.8,3260.2,3.06723]
[1738244155990,3.06679,3260.8,3260.3,0.07045492]
[1738244156262,3.06679,3260.8,3260.3,3.13764492]
[1738244156466,3.06679,3260.8,3260.2,3.06728]
[1738244156624,3.06679,3260.8,3260.4,0.07041909]
[1738244156825,3.06658,3261.0,3260.3,0.07045492]
[1738244157027,3.06658,3261.0,3260.5,0.07038326]
[1738244157248,3.06638,3261.2,3260.4,3.06709]
[1738244157249,3.06638,3261.2,3260.6,3.06685]
[1738244157433,3.06655,3261.0,3260.6,0.89934743]
[1738244157836,3.06673,3260.8,3260.6,0.89934743]
[1738244158563,3.06673,3260.8,3260.6,0.07034743]
[1738244158767,3.06673,3260.8,3260.1,0.8004]
[1738244158768,3.06696,3260.6,3260.1,0.8004]
[1738244158976,3.06712,3260.4,3260.2,0.07043448]
[1738244159154,3.06708,3260.5,3260.2,0.07043448]
[1738244160176,3.06701,3260.5,3260.2,0.07043448]
[1738244160327,3.06701,3260.5,3260.0,3.0]
[1738244160671,3.06701,3260.5,3260.1,0.07054222]
[1738244160828,3.06696,3260.6,3260.1,0.07054222]
[1738244161027,3.06665,3260.9,3260.1,3.09805211]
[1738244161227,3.06705,3260.5,3260.2,0.07050639]
[1738244161463,3.0672,3260.3,3260.2,0.07050639]
[1738244161621,3.0672,3260.3,3259.6,0.809]
[1738244161622,3.06753,3260.0,3259.6,0.809]
[1738244162481,0.7554,3260.3,3259.2,0.783]
[1738244162628,0.7554,3260.3,3258.6,4.47915196]
[1738244162629,3.06829,3259.2,3258.8,0.8283]
[1738244163675,3.06829,3259.2,3258.4,0.7608]
[1738244163676,3.06875,3258.7,3258.4,0.7608]
[1738244164084,3.06851,3259.0,3258.4,0.7608]
[1738244164372,3.375109,3259.2,3258.4,0.7608]
[1738244164373,3.06881,3258.6,3258.4,0.7608]
[1738244164523,0.306829,3259.2,3257.9,0.7682]
[1738244164524,3.0691,3258.3,3257.9,0.7682]
[1738244165181,3.06919,3258.2,3257.9,0.7682]
[1738244165480,3.06919,3258.2,3257.7,3.06956]
[1738244165843,3.06919,3258.2,3257.5,3.89773]
[1738244166045,3.0688,3258.6,3257.5,0.8279]
[1738244166263,3.06958,3257.8,3257.1,3.07018]
[1738244166433,3.06958,3257.8,3257.0,0.7697]
[1738244166629,3.07005,3257.3,3256.4,3.07083]
[1738244166828,0.0075,3258.2,3256.8,3.07043]
[1738244166829,3.0699,3257.5,3256.8,3.07043]
[1738244167031,3.06966,3257.7,3257.0,3.07027]
[1738244167260,3.06966,3257.7,3256.8,3.07043]
[1738244167261,3.06984,3257.5,3256.8,3.07043]
[1738244167760,3.676457,3257.9,3257.2,3.07011]
[1738244167967,6.06941,3258.0,3257.4,3.06986]
[1738244168291,6.06941,3258.0,3257.2,3.83831]
[1738244168292,0.8177,3258.3,3257.7,3.06961]
[1738244168609,3.88679,3258.3,3257.7,3.06961]
[1738244169402,3.06909,3258.3,3257.7,3.06961]
[1738244169766,3.06893,3258.5,3257.9,3.06946]
[1738244170304,3.06881,3258.6,3258.0,3.84396]
[1738244170518,3.0689,3258.5,3257.9,3.06945]
[1738244170805,3.06905,3258.4,3257.7,3.06962]
[1738244171111,3.06952,3257.9,3257.2,0.7746]
[1738244171310,3.0693,3258.1,3257.5,3.06979]
[1738244171521,3.0691,3258.3,3257.6,3.06968]
[1738244171683,3.84656,3259.3,3258.0,4.01469444]
[1738244171885,0.61234958,3260.0,3258.4,0.55]
[1738244172066,3.88928,3260.3,3259.5,3.0679]
[1738244172272,3.0,3260.1,3259.3,3.06811]
[1738244172465,0.688929,3260.1,3259.6,0.0702522]
[1738244172787,0.688929,3260.1,3258.7,3.0]
[1738244172788,0.60034226,3260.5,3259.3,0.8051]
[1738244172966,0.7864,3260.9,3259.6,3.06786]
[1738244172967,3.06688,3260.7,3259.6,3.06786]
[1738244173172,3.85307,3260.9,3260.0,3.06742]
[1738244173369,3.06682,3260.7,3260.1,0.07007299]
[1738244173620,6.06674,3260.8,3260.2,3.06729]
[1738244173965,6.06674,3260.8,3259.5,3.06795]
[1738244173966,3.06718,3260.4,3260.3,0.07000132]
[1738244174283,3.06718,3260.4,3259.7,3.06776]
[1738244174481,3.06692,3260.6,3260.3,0.07000132]
[1738244174684,5.49738,3261.2,3259.9,3.85487]
[1738244175017,3.06646,3261.1,3260.4,3.06702]
[1738244175222,5.49738,3261.2,3260.4,3.06702]
[1738244175371,5.49738,3261.2,3260.5,0.06992966]
[1738244175700,3.06648,3261.1,3260.4,3.06703]
[1738244175903,3.06648,3261.1,3260.6,0.06989384]
[1738244176222,3.06656,3261.0,3260.7,0.06985801]
[1738244176511,3.06673,3260.8,3260.7,0.06985801]
[1738244176814,3.0672,3260.3,3259.4,3.89572]
[1738244177111,3.06734,3260.2,3259.4,3.89574]
[1738244177332,3.06739,3260.1,3259.5,0.07028804]
[1738244177465,3.06786,3259.6,3259.5,0.07028804]
[1738244177668,6.87636,3259.6,3259.5,0.07028804]
[1738244177868,3.0685,3259.0,3258.7,0.46352767]
[1738244178544,3.0685,3259.0,3258.8,0.06507955]
[1738244178816,3.06868,3258.8,3258.4,0.7751]
[1738244179121,3.06868,3258.8,3258.0,0.7847]
[1738244179321,3.06868,3258.8,3258.1,3.06927]
[1738244179469,3.06824,3259.2,3258.4,3.06898]
[1738244179668,3.06824,3259.2,3258.5,3.06886]
[1738244179871,3.06806,3259.4,3258.7,3.0687]
[1738244180108,3.06806,3259.4,3258.8,3.06854]
[1738244180803,3.681655,3259.4,3258.6,3.06878]
[1738244180992,3.06806,3259.4,3258.6,3.06878]
[1738244181190,0.252,3259.9,3258.4,0.7963]
[1738244181191,3.0,3259.5,3258.8,3.06854]
[1738244181374,3.06805,3259.4,3258.8,3.06854]
[1738244181578,3.0677,3259.8,3259.0,3.06835]
[1738244181776,3.0,3259.7,3259.2,3.87442]
[1738244182071,3.06748,3260.0,3258.6,0.38957936]
[1738244182072,3.06796,3259.5,3258.8,0.8062]
[1738244182329,0.0075,3260.3,3258.8,0.8062]
[1738244182330,3.06824,3259.2,3258.8,0.8062]
[1738244182480,3.0,3259.7,3258.8,0.8062]
[1738244182481,3.06817,3259.3,3258.8,0.8062]
[1738244182892,3.06817,3259.3,3258.5,3.06888]
[1738244183093,3.06817,3259.3,3258.4,0.8062]
[1738244183094,3.06863,3258.8,3258.4,0.8062]
[1738244183429,3.06849,3259.0,3258.4,0.8062]
[1738244183612,3.06836,3259.1,3258.4,3.87513]
[1738244183928,3.06816,3259.3,3258.6,3.06874]
[1738244184137,3.06797,3259.5,3258.8,3.06861]
[1738244184423,3.06785,3259.7,3259.0,3.06841]
[1738244184780,3.06785,3259.7,3257.9,0.7588]
[1738244184781,3.015,3259.3,3257.9,0.7588]
[1738244184980,0.8364,3259.3,3258.0,3.06934]
[1738244185205,0.8364,3259.3,3257.9,0.7588]
[1738244185206,3.06887,3258.6,3257.9,0.7588]
[1738244185414,3.06882,3258.6,3258.0,3.06935]
[1738244185610,3.06823,3259.2,3257.9,0.7588]
[1738244185611,3.06892,3258.5,3257.9,0.7588]
[1738244185834,0.7564,3259.7,3258.6,3.0688]
[1738244186107,0.7564,3259.7,3258.3,4.01263654]
[1738244186108,3.06787,3259.6,3259.0,3.06839]
[1738244186269,3.06805,3259.4,3258.8,3.06855]
[1738244186777,3.06782,3259.7,3258.8,3.06855]
[1738244187116,3.06782,3259.7,3259.0,3.06841]
[1738244187117,3.06778,3259.7,3259.0,3.06841]
[1738244187372,3.06787,3259.6,3259.0,3.06841]
[1738244187858,3.06796,3259.5,3258.8,3.06858]
[1738244188060,0.306796,3259.4,3258.3,3.87675]
[1738244188263,3.06853,3258.9,3258.3,3.87675]
[1738244188465,3.06853,3258.9,3258.3,0.8077]
[1738244188668,3.0684,3259.1,3258.4,3.06897]
[1738244188836,3.0,3259.4,3258.6,3.06873]
[1738244189038,6.0681,3259.4,3258.8,3.06859]
[1738244189222,3.06804,3259.5,3258.8,3.06859]
[1738244190120,3.0,3259.8,3258.8,3.06855]
[1738244190321,3.06774,3259.8,3259.1,3.06826]
[1738244190540,3.06774,3259.8,3259.2,3.06816]
[1738244190779,3.06792,3259.6,3259.0,3.06837]
[1738244190927,0.0075,3260.0,3258.9,0.8023]
[1738244191264,3.06825,3259.2,3258.7,3.0687]
[1738244191470,3.06788,3259.6,3258.7,3.0687]
[1738244191671,3.06782,3259.7,3259.1,3.06832]
[1738244192022,3.06804,3259.5,3258.9,3.06849]
[1738244192279,3.06821,3259.3,3258.7,3.06868]
[1738244192476,3.0687,3258.7,3258.4,0.35753818]
[1738244192683,3.06853,3258.9,3258.4,0.35753818]
[1738244192835,3.06864,3258.8,3258.5,0.06297959]
[1738244193036,3.06849,3259.0,3258.5,0.06297959]
[1738244193244,3.06853,3258.9,3258.5,0.06297959]
[1738244193454,3.06837,3259.1,3258.5,0.06297959]
[1738244193658,3.06816,3259.3,3258.7,3.06868]
[1738244193863,6.06779,3259.7,3258.9,3.06845]
[1738244194064,3.06792,3259.6,3259.0,0.7747]
[1738244194275,3.06792,3259.6,3259.0,0.83556696]
[1738244194473,3.0,3259.7,3259.0,0.83556696]
[1738244194647,3.06822,3259.3,3259.0,0.06086696]
[1738244194836,3.06833,3259.1,3259.0,0.06086696]
[1738244195036,3.06858,3258.9,3258.6,0.7967]
[1738244195245,3.06858,3258.9,3258.4,3.06898]
[1738244195477,6.13674,3259.1,3258.4,3.06898]
[1738244195663,3.06833,3259.1,3258.4,3.06898]
[1738244195866,3.06861,3258.8,3258.2,3.82277]
[1738244196256,3.06861,3258.8,3258.3,3.06908]
[1738244196489,3.06861,3258.8,3258.2,3.82271]
[1738244196639,3.06857,3258.9,3258.3,3.06907]
[1738244196839,3.06857,3258.9,3258.4,3.06897]
[1738244197077,0.8051,3259.3,3258.5,3.0688]
[1738244197078,3.87327,3259.3,3258.5,3.0688]
[1738244197283,3.0,3259.4,3258.9,3.06848]
[1738244197442,6.06805,3259.4,3258.9,3.06848]
[1738244197637,3.06805,3259.4,3258.9,3.06848]
[1738244197877,3.06805,3259.4,3258.6,3.06872]
[1738244198184,3.06805,3259.4,3258.3,3.069]
[1738244198185,3.36787,3259.6,3258.9,3.06849]
[1738244198363,3.06752,3260.0,3259.2,3.06823]
[1738244198538,3.06781,3259.7,3259.2,3.06823]
[1738244198738,3.06781,3259.7,3259.1,0.8269]
[1738244198989,6.13566,3259.7,3259.1,3.89522]
[1738244199137,3.06781,3259.7,3259.1,3.89522]
[1738244200189,3.06747,3260.1,3259.5,3.06794]
[1738244200342,3.06718,3260.4,3259.7,3.06769]
[1738244200547,0.7946,3260.6,3259.2,0.33768165]
[1738244200781,3.06732,3260.2,3259.6,3.0678]
[1738244200958,3.06749,3260.0,3259.4,3.06802]
[1738244201343,3.06731,3260.2,3259.4,3.06802]
[1738244201548,0.7946,3260.6,3259.5,3.06795]
[1738244201775,3.06758,3259.9,3259.5,0.27982837]
[1738244202946,3.0676,3259.9,3259.3,3.06814]
[1738244203193,0.8021,3260.6,3259.5,3.06787]
[1738244203194,3.06724,3260.3,3259.5,3.06787]
[1738244203341,3.06712,3260.4,3259.8,3.06758]
[1738244203541,0.7946,3260.6,3259.3,3.06814]
[1738244203542,3.06732,3260.2,3259.6,3.06779]
[1738244203846,3.06732,3260.2,3259.6,6.13558]
[1738244204048,3.06732,3260.2,3259.6,3.06779]
[1738244204488,3.06727,3260.3,3259.6,3.06779]
[1738244204858,3.06727,3260.3,3259.8,3.06765]
[1738244205204,3.06702,3260.5,3259.9,3.06756]
[1738244205502,0.386162,3260.4,3259.9,3.06756]
[1738244205795,0.7946,3260.6,3259.9,3.06756]
[1738244205998,4.48197795,3261.1,3260.6,3.0669]
[1738244206303,3.06628,3261.3,3260.6,3.0669]
[1738244206460,3.06628,3261.3,3260.8,3.06671]
[1738244206665,3.68083326,3261.3,3260.8,3.06671]
[1738244206891,0.36808333,3261.3,3260.8,3.06671]
[1738244207063,3.06642,3261.2,3260.6,3.0669]
[1738244207586,3.06666,3260.9,3260.0,4.25680277]
[1738244207786,3.247,3261.6,3260.0,4.25680277]
[1738244207787,3.06653,3261.1,3260.4,3.06702]
[1738244207973,3.06706,3260.5,3259.7,3.06771]
[1738244208172,0.8157,3261.4,3260.3,3.06713]
[1738244208372,3.06626,3261.3,3260.5,3.06697]
[1738244208607,3.479256,3261.2,3260.6,3.06685]
[1738244208807,3.06681,3260.8,3260.1,0.03066891]
[1738244208962,3.06654,3261.0,3260.4,3.06703]
[1738244209156,3.06654,3261.1,3260.4,3.06703]
[1738244209765,3.06654,3261.1,3260.6,3.06691]
[1738244209958,3.06657,3261.0,3260.4,3.06703]
[1738244210213,0.6545726,3261.1,3260.0,3.06746]
[1738244210368,3.06701,3260.5,3260.0,3.06746]
[1738244210706,3.06682,3260.7,3260.0,3.06746]
[1738244210707,3.06697,3260.6,3260.0,3.06746]
[1738244210888,3.06645,3261.1,3259.7,0.7702]
[1738244210889,3.0672,3260.3,3259.7,0.7702]
[1738244211114,3.06727,3260.3,3259.6,3.06781]
[1738244211297,3.06744,3260.1,3259.5,0.46352767]
[1738244211462,3.06769,3259.8,3259.5,0.46352767]
[1738244211664,1.069427,3260.3,3259.8,3.06766]
[1738244212288,3.06718,3260.4,3259.8,3.06766]
[1738244213012,3.06742,3260.1,3259.6,3.0678]
[1738244213308,3.06713,3260.4,3259.7,3.06768]
[1738244213482,3.0672,3260.3,3259.7,3.06768]
[1738244213864,6.13448,3260.3,3259.7,3.06768]
[1738244214069,3.0672,3260.3,3259.7,3.06768]
[1738244214898,3.0672,3260.3,3259.8,3.06764]
[1738244215300,3.680641,3260.3,3259.6,3.06778]
[1738244215671,3.680641,3260.3,3259.8,3.06765]
[1738244215872,3.06722,3260.3,3259.8,3.06765]
[1738244216099,3.06722,3260.3,3259.6,3.06778]
[1738244216296,3.06722,3260.3,3259.7,3.06775]
[1738244216502,3.06722,3260.3,3259.5,3.06788]
[1738244216775,3.06747,3260.1,3259.5,3.06788]
[1738244216975,3.06712,3260.4,3259.7,3.06774]
[1738244217197,3.06723,3260.3,3259.8,3.0676]
[1738244217412,3.06723,3260.3,3259.6,3.06777]
[1738244217819,3.06706,3260.5,3259.9,3.06757]
[1738244218017,0.8188,3260.8,3259.3,4.17049]
[1738244218018,0.8188,3260.8,3260.2,3.06725]
[1738244218217,0.7697,3261.2,3260.5,3.06697]
[1738244218513,0.7697,3261.2,3260.2,0.03066896]
[1738244218514,3.07403,3261.1,3260.2,0.03066896]
[1738244218715,3.06691,3260.7,3260.1,3.06733]
[1738244218917,3.06693,3260.6,3260.1,3.06733]
[1738244219472,3.83611,3261.2,3260.1,3.06733]
[1738244219816,1.21581234,3261.2,3260.2,3.06729]
[1738244220019,3.06645,3261.1,3260.5,3.06694]
[1738244220222,3.06654,3261.0,3260.5,3.06694]
[1738244220383,3.06679,3260.8,3260.3,3.06714]
[1738244220582,3.06654,3261.0,3260.0,3.88421]
[1738244220583,3.06659,3261.0,3260.0,3.88421]
[1738244220782,3.06679,3260.8,3260.2,3.06728]
[1738244221138,3.06683,3260.7,3260.2,3.06728]
[1738244221302,3.06683,3260.7,3260.0,3.88421]
[1738244221505,3.06679,3260.8,3260.0,3.88421]
[1738244221829,0.7697,3261.2,3260.6,3.06685]
[1738244222008,3.83611,3261.2,3260.6,3.06685]
[1738244222173,3.06648,3261.1,3260.6,3.06685]
[1738244222382,3.06669,3260.9,3260.4,3.06707]
[1738244222823,3.06669,3260.9,3260.5,0.05339336]
[1738244224004,3.06683,3260.7,3260.5,0.05339336]